bitfinex-derivatives/quotes_ETHF0:USTF0_20250620
["timestamp","ask_amount","ask_price","bid_price","bid_amount"]
[1750441382415,5.52061194,2398.6,2398.0,3.0368]
[1750441382719,3.2078,2398.5,2397.6,6.3977]
[1750441382911,3.2078,2398.2,2397.7,3.0368]
[1750441383308,3.2078,2397.8,2397.2,3.2078]
[1750441383715,3.2078,2397.8,2397.3,3.0368]
[1750441384116,6.3373,2398.1,2397.5,3.2078]
[1750441384420,6.3373,2398.1,2397.4,11.38077783]
[1750441384621,2.31281194,2398.5,2398.0,14.58857783]
[1750441384811,3.2078,2398.7,2397.7,3.2078]
[1750441385116,3.2078,2398.7,2398.1,3.2078]
[1750441385417,3.2078,2398.9,2398.0,3.2078]
[1750441385611,3.2078,2398.6,2397.7,3.2078]
[1750441385811,3.2078,2398.6,2397.2,3.2078]
[1750441385812,0.83396,2398.0,2397.2,3.2078]
[1750441386011,2.9103,2397.9,2397.3,2.9127]
[1750441386211,6.1181,2397.9,2397.4,0.0834237]
[1750441386409,3.2078,2397.6,2397.4,0.0834237]
[1750441387526,3.2078,2398.0,2397.5,2.9127]
[1750441388021,2.9103,2398.4,2397.9,3.2078]
[1750441388232,3.2078,2398.6,2398.0,11.38077783]
[1750441388520,3.2078,2398.6,2398.0,3.1846]
[1750441388716,0.83389,2398.2,2397.3,3.2078]
[1750441388920,3.2078,2398.3,2397.7,3.2078]
[1750441389111,3.2078,2398.6,2398.0,3.2078]
[1750441389312,3.2078,2399.0,2398.2,11.38077783]
[1750441389511,3.2078,2399.3,2398.8,11.38077783]
[1750441389820,0.06933781,2400.1,2399.2,3.2078]
[1750441390122,0.06933781,2400.1,2399.7,3.2078]
[1750441390308,0.06933781,2400.1,2399.4,3.2078]
[1750441390514,0.06933781,2400.1,2399.3,3.1846]
[1750441390810,0.06933781,2400.1,2399.2,3.2078]
[1750441390811,0.8333,2399.9,2399.2,3.2078]
[1750441391013,6.1712,2399.8,2399.0,3.0556]
[1750441391321,11.45011564,2400.1,2399.0,3.0556]
[1750441391322,0.06933781,2400.1,2399.1,3.2078]
[1750441391619,0.06933781,2400.1,2399.8,3.2078]
[1750441391816,0.06933781,2400.1,2400.0,11.38077783]
[1750441392013,0.06933781,2400.1,2399.9,3.0556]
[1750441392213,3.2078,2401.4,2400.0,11.38077783]
[1750441392415,3.2078,2401.4,2399.9,8.0556]
[1750441392416,0.08328821,2401.3,2400.7,3.2078]
[1750441392718,5.52061194,2403.2,2401.2,14.58857783]
[1750441392917,0.08322583,2403.1,2402.9,11.38077783]
[1750441393221,3.6218122,2403.8,2403.0,3.0556]
[1750441393420,3.2078,2403.5,2403.0,3.0556]
[1750441393626,3.2078,2403.1,2402.2,6.2666]
[1750441393815,3.2078,2402.3,2401.4,14.58857783]
[1750441394012,3.29105701,2402.2,2401.4,6.3434]
[1750441394317,2.34403436,2403.9,2401.4,6.3434]
[1750441394318,3.2078,2403.6,2402.1,3.2078]
[1750441394518,3.2078,2403.6,2402.5,3.2078]
[1750441394719,3.2078,2403.2,2402.4,3.2078]
[1750441394929,3.0973,2403.1,2402.4,3.2078]
[1750441395116,3.2078,2403.5,2402.8,14.58857783]
[1750441395318,3.2078,2404.3,2403.4,14.58857783]
[1750441395619,3.2078,2403.7,2403.0,3.2078]
[1750441395823,3.0973,2404.2,2403.3,3.2078]
[1750441396125,3.2078,2404.0,2403.3,3.2078]
[1750441396323,3.2078,2404.0,2403.4,3.1356]
[1750441396525,3.2078,2403.6,2403.0,3.2078]
[1750441396826,3.2078,2403.1,2402.5,6.3434]
[1750441397022,11.38077783,2403.6,2402.5,6.3434]
[1750441397023,3.2078,2403.4,2402.5,6.3434]
[1750441397226,2.9302,2403.3,2402.5,6.3434]
[1750441397423,3.2078,2402.8,2402.2,6.3916]
[1750441397624,3.2078,2402.8,2400.8,49.888]
[1750441397625,3.2078,2402.5,2401.9,3.2078]
[1750441397820,11.38077783,2403.0,2402.0,0.08326394]
[1750441397821,3.2078,2402.6,2402.0,0.08326394]
[1750441398025,3.2078,2402.3,2402.0,0.08326394]
[1750441398424,2.9302,2402.2,2402.0,0.08326394]
[1750441398922,7.9302,2402.2,2402.0,0.08326394]
[1750441399123,7.9302,2402.2,2401.3,3.2078]
[1750441399324,2.9302,2402.2,2401.5,14.58857783]
[1750441399624,3.2078,2402.0,2401.2,11.38077783]
[1750441399829,2.9302,2402.2,2401.2,11.38077783]
[1750441400024,3.2078,2402.6,2401.5,3.2078]
[1750441400327,3.2078,2402.1,2401.6,3.1369]
[1750441400527,3.2078,2402.4,2401.6,3.1369]
[1750441400729,3.2078,2402.4,2401.6,14.51767783]
[1750441401026,2.8914,2402.8,2401.8,3.2078]
[1750441401230,12.77214084,2403.5,2402.2,14.58857783]
[1750441401531,12.77214084,2403.5,2402.9,3.2078]
[1750441401726,12.77214084,2403.5,2403.0,3.1369]
[1750441402326,2.8914,2403.9,2403.0,3.1369]
[1750441402327,3.2078,2403.7,2403.0,3.1369]
[1750441402527,3.2078,2404.3,2403.2,3.2078]
[1750441402722,2.96073781,2404.1,2403.7,3.2078]
[1750441402929,0.06933781,2404.1,2403.7,3.2078]
[1750441403125,0.06933781,2404.1,2403.8,2.9811]
[1750441403325,0.06933781,2404.1,2404.0,3.2078]
[1750441403626,3.2078,2404.9,2404.0,3.2078]
[1750441403821,3.2078,2404.9,2404.3,14.58857783]
[1750441404021,3.2078,2405.2,2404.6,14.58857783]
[1750441404226,3.2078,2405.2,2404.6,3.2078]
[1750441404425,0.08315662,2405.1,2405.0,3.2078]
[1750441404626,3.2078,2405.6,2405.0,3.2078]
[1750441404627,3.0032,2405.8,2405.0,3.2078]
[1750441404828,0.08313588,2405.7,2405.4,3.2078]
[1750441405026,0.08313588,2405.7,2405.0,3.2078]
[1750441405226,0.08313588,2405.7,2405.3,3.2078]
[1750441405426,0.08313588,2405.7,2405.2,11.38077783]
[1750441405427,3.2078,2406.8,2405.6,14.58857783]
[1750441405628,3.2078,2406.6,2405.9,3.2078]
[1750441405929,3.2078,2406.6,2405.6,11.38077783]
[1750441405930,3.0032,2406.7,2405.6,14.58857783]
[1750441406135,2.9766,2406.5,2406.3,3.2078]
[1750441406331,3.2078,2406.8,2406.3,3.2078]
[1750441406633,3.2078,2406.4,2405.5,3.2078]
[1750441406934,3.2078,2405.9,2405.0,3.1312]
[1750441407135,3.2078,2405.9,2405.5,3.2078]
[1750441407325,3.2078,2405.9,2405.1,3.0413]
[1750441407533,3.2078,2406.1,2405.5,3.2078]
[1750441407833,3.2078,2405.7,2405.1,3.0413]
[1750441408128,3.2078,2406.0,2405.1,3.2078]
[1750441408333,11.38077783,2406.3,2404.6,3.2078]
[1750441408334,3.2078,2405.3,2404.6,3.2078]
[1750441408530,3.2078,2405.3,2404.7,11.38077783]
[1750441408726,3.2078,2405.3,2404.7,14.42207783]
[1750441409135,3.2078,2405.3,2404.6,3.2078]
[1750441409634,3.2078,2405.6,2405.2,11.38077783]
[1750441409832,3.2078,2406.4,2405.5,11.38077783]
[1750441410027,3.0124,2406.3,2405.6,3.2078]
[1750441410227,3.0124,2406.3,2405.9,3.2078]
[1750441410637,3.2078,2406.1,2405.4,3.2078]
[1750441410834,3.2078,2406.8,2405.8,11.38077783]
[1750441411134,3.2078,2407.0,2406.4,3.2078]
[1750441411331,13.45764783,2407.3,2406.0,3.2078]
[1750441411332,3.2078,2406.6,2406.0,3.2078]
[1750441411534,3.0124,2406.9,2406.3,3.2078]
[1750441411839,3.2078,2407.3,2406.3,3.2078]
[1750441412033,3.2078,2407.3,2406.7,14.58857783]
[1750441412334,3.2078,2407.3,2406.8,3.1161]
[1750441412632,3.2078,2407.3,2407.0,11.38077783]
[1750441412936,3.2078,2407.8,2407.2,3.2078]
[1750441413235,3.2078,2407.5,2406.6,49.908]
[1750441413437,3.2078,2407.5,2406.9,3.2078]
[1750441414037,3.2078,2407.8,2407.2,3.2078]
[1750441414239,3.2078,2408.1,2407.5,3.2078]
[1750441414444,3.1263,2408.0,2407.5,3.2078]
[1750441414936,3.2078,2408.4,2407.5,3.2078]
[1750441415138,3.2078,2408.4,2407.8,3.2078]
[1750441415330,0.0203708,2408.6,2408.2,3.2078]
[1750441415736,0.0203708,2408.6,2408.5,11.38077783]
[1750441415937,3.2078,2409.0,2408.5,11.38077783]
[1750441415938,3.22279,2409.3,2408.5,3.2078]
[1750441416235,0.01499,2409.3,2408.7,3.2078]
[1750441416438,3.0875,2410.0,2409.2,3.2078]
[1750441416739,3.2078,2409.3,2408.3,3.2078]
[1750441416935,3.2078,2408.4,2407.9,6.1402]
[1750441417235,3.2078,2408.5,2407.9,2.9324]
[1750441417430,3.2078,2408.8,2408.0,11.38077783]
[1750441417739,3.0875,2408.7,2408.2,3.2078]
[1750441417934,3.2078,2409.1,2408.5,3.2078]
[1750441418250,3.2078,2408.6,2408.0,3.2078]
[1750441418535,2.9837,2408.5,2408.1,3.2078]
[1750441418734,3.2078,2408.9,2408.3,3.2078]
[1750441419336,6.1915,2408.9,2408.3,3.2078]
[1750441419542,0.8302,2408.8,2407.9,3.2078]
[1750441419738,6.1915,2408.7,2408.3,3.2078]
[1750441419939,6.1915,2408.7,2408.0,3.1805]
[1750441420141,2.9837,2408.7,2408.0,3.1805]
[1750441420442,3.2078,2409.0,2408.0,17.76907783]
[1750441420644,4.03808,2408.6,2408.0,6.3883]
[1750441420842,2.9837,2408.5,2408.0,6.3883]
[1750441421137,3.2078,2408.2,2407.6,6.4051]
[1750441421331,3.2078,2408.2,2407.6,3.2078]
[1750441421536,3.82035,2408.1,2407.6,3.2078]
[1750441421736,2.9899,2408.1,2407.6,3.2078]
[1750441422835,2.9899,2408.1,2406.8,3.1973]
[1750441422836,0.83066,2407.5,2406.8,3.1973]
[1750441423038,7.9899,2408.1,2406.3,3.2078]
[1750441423039,14.58857783,2407.4,2406.3,3.2078]
[1750441423243,17.57847783,2407.4,2406.4,0.0831117]
[1750441423537,3.2078,2407.0,2406.4,0.0831117]
[1750441423737,2.9899,2406.9,2406.4,0.0831117]
[1750441423937,0.83099,2406.5,2406.4,0.0831117]
[1750441424240,0.83099,2406.5,2405.2,11.38077783]
[1750441424241,11.38077783,2406.5,2405.3,3.2078]
[1750441424437,3.2078,2406.5,2405.4,3.29094625]
[1750441424634,0.06933781,2406.1,2405.7,3.2078]
[1750441425637,3.2078,2407.0,2406.0,14.58857783]
[1750441425840,3.2078,2407.0,2406.3,3.2078]
[1750441426144,3.2078,2407.3,2406.6,3.2078]
[1750441426339,9.1362,2407.7,2406.9,3.2078]
[1750441426544,2.9393,2407.7,2407.0,2.9571]
[1750441426738,3.2078,2408.0,2407.1,3.2078]
[1750441427042,0.83047,2408.0,2407.4,3.2078]
[1750441427237,3.1151,2407.9,2407.4,3.2078]
[1750441427836,3.1151,2407.9,2407.7,3.2078]
[1750441428036,0.83039,2408.3,2407.7,3.2078]
[1750441428235,3.1151,2408.1,2407.7,3.2078]
[1750441428636,6.3229,2408.1,2407.3,3.2078]
[1750441428835,4.03826,2408.1,2407.0,6.1649]
[1750441429038,3.2078,2408.1,2407.3,3.2078]
[1750441429349,3.1151,2408.0,2407.3,3.2078]
[1750441430040,3.94559,2408.0,2407.3,3.2078]
[1750441430343,3.1151,2408.0,2407.3,3.2078]
[1750441430542,0.06933781,2407.0,2406.9,3.2078]
[1750441430740,3.1151,2408.0,2406.9,14.58857783]
[1750441430937,3.9456,2408.0,2407.1,3.2078]
[1750441431142,3.1151,2408.0,2407.4,3.2078]
[1750441432544,14.49587783,2408.0,2407.0,6.3685]
[1750441432747,11.38077783,2407.7,2406.6,53.0668]
[1750441433048,4.1823578,2407.6,2406.6,6.3685]
[1750441433351,3.2078,2407.5,2406.6,6.3685]
[1750441433538,0.83073,2407.3,2406.6,6.3685]
[1750441433735,0.06933781,2407.0,2406.6,6.3685]
[1750441434343,0.83085,2406.9,2406.6,3.2078]
[1750441434542,3.1766,2406.9,2406.2,3.2078]
[1750441434743,1.27482639,2406.8,2405.8,3.2078]
[1750441434941,6.3844,2406.9,2405.8,3.2078]
[1750441434942,0.83096,2406.6,2405.8,3.2078]
[1750441435137,3.1766,2406.5,2405.8,3.2078]
[1750441435338,3.1766,2406.5,2405.9,3.0464]
[1750441435748,4.00761,2406.5,2405.9,3.0464]
[1750441435945,6.3844,2406.5,2405.8,3.2078]
[1750441436148,0.83114,2406.1,2405.5,3.2078]
[1750441436447,3.1766,2406.5,2405.8,3.2078]
[1750441436640,14.55737783,2406.5,2405.4,3.2078]
[1750441436844,4.48695107,2406.4,2405.4,3.2078]
[1750441437042,4.37365107,2406.3,2405.5,3.0067]
[1750441437249,4.37365107,2406.3,2405.4,3.2078]
[1750441437250,1.27915107,2406.2,2405.4,3.2078]
[1750441437545,1.27915107,2406.2,2405.1,11.38077783]
[1750441437546,4.37365107,2406.1,2405.7,3.2078]
[1750441437748,3.0945,2406.1,2405.7,3.2078]
[1750441437953,0.83119,2406.0,2405.3,3.2078]
[1750441438151,3.0945,2405.9,2405.3,3.2078]
[1750441438448,3.2078,2406.5,2405.7,3.2078]
[1750441438642,1.2818889,2406.4,2406.0,3.2078]
[1750441438847,0.83105,2406.4,2405.7,3.2078]
[1750441439047,3.0945,2406.3,2405.8,3.0067]
[1750441439547,3.0945,2406.3,2405.7,3.2078]
[1750441439746,1.28354722,2406.2,2405.7,14.58857783]
[1750441440046,3.1658,2406.7,2406.0,3.2078]
[1750441440355,0.83112,2406.2,2406.0,3.2078]
[1750441440549,3.2078,2406.5,2406.0,3.2078]
[1750441440752,3.2078,2406.1,2405.4,3.2078]
[1750441440949,4.44933027,2406.0,2405.4,3.2078]
[1750441441149,0.83126,2405.8,2405.4,3.2078]
[1750441441352,3.1658,2405.7,2405.1,3.2078]
[1750441441549,3.2078,2405.5,2404.8,3.2078]
[1750441441750,0.27817324,2406.0,2405.4,3.2078]
[1750441441949,2.31281194,2406.9,2405.9,14.58857783]
[1750441442150,0.06933781,2407.0,2406.8,3.2078]
[1750441442447,0.06933781,2407.0,2406.9,2.9611]
[1750441442848,3.2078,2407.8,2406.9,7.9611]
[1750441443058,4.49109089,2407.7,2406.7,3.2078]
[1750441443355,3.2078,2407.4,2406.7,3.2078]
[1750441443551,4.33729089,2407.3,2406.3,3.2078]
[1750441443754,3.27713781,2407.0,2406.3,3.2078]
[1750441443950,0.06933781,2407.0,2406.7,11.38077783]
[1750441444151,6.2618,2408.2,2406.9,3.2078]
[1750441444348,12.66447958,2408.1,2407.2,3.2078]
[1750441444556,3.2078,2407.8,2407.2,3.2078]
[1750441444758,4.03836,2407.8,2407.2,3.2078]
[1750441444955,3.054,2407.7,2407.2,3.2078]
[1750441445253,14.58857783,2407.5,2406.9,3.2078]
[1750441445554,4.48625875,2407.4,2406.5,11.38077783]
[1750441445755,2.31281194,2407.9,2407.1,3.2078]
[1750441446060,0.83044,2408.1,2407.6,3.2078]
[1750441446251,3.2028,2408.3,2407.2,3.0573]
[1750441446252,0.8306,2407.7,2407.2,3.2078]
[1750441446455,1.28427798,2407.6,2407.2,3.2078]
[1750441446751,1.28427798,2407.5,2407.2,3.2078]
[1750441447054,0.83057,2407.8,2407.2,3.2078]
[1750441447251,2.11667049,2407.7,2407.2,3.2078]
[1750441447454,4.48889049,2407.6,2407.2,3.2078]
[1750441447651,3.2028,2407.6,2407.2,3.2078]
[1750441447846,3.2078,2407.4,2406.5,3.2078]
[1750441448047,0.83078,2407.1,2406.5,3.2078]
[1750441448251,4.4928726,2407.3,2406.1,3.0573]
[1750441448252,1.2900726,2407.0,2406.8,3.2078]
[1750441448557,1.28981142,2406.9,2406.5,3.2078]
[1750441448749,1.28981142,2406.8,2406.1,6.2651]
[1750441448954,0.83097,2406.6,2406.1,3.2078]
[1750441449258,4.43727861,2406.5,2405.7,3.2078]
[1750441449461,0.83108,2406.3,2405.7,3.2078]
[1750441449754,1.28967861,2406.2,2406.0,3.2078]
[1750441449957,1.35901642,2406.1,2406.0,3.2078]
[1750441450556,1.35901642,2406.1,2406.0,8.2078]
[1750441450557,0.06933781,2406.1,2406.0,8.2078]
[1750441451051,2.31281194,2407.7,2406.0,69.44957783]
[1750441451257,3.97806,2408.1,2407.4,3.2078]
[1750441451455,3.97806,2408.1,2406.1,2.9625]
[1750441451456,11.38077783,2407.8,2406.1,2.9625]
[1750441451656,0.83066,2407.5,2406.9,3.2078]
[1750441451861,0.83091,2406.8,2406.5,3.2078]
[1750441452158,3.2078,2407.3,2405.6,3.2078]
[1750441452159,3.36451951,2406.7,2405.6,3.2078]
[1750441452364,2.07792,2406.0,2404.9,3.2078]
[1750441452663,2.07792,2406.0,2404.1,49.865]
[1750441452664,4.42207951,2405.9,2405.5,3.2078]
[1750441452849,2.11822949,2405.8,2405.2,3.2078]
[1750441453051,0.83136,2405.5,2405.2,3.2078]
[1750441453354,3.1349,2405.7,2405.0,3.2078]
[1750441453553,3.2078,2405.7,2405.0,3.2078]
[1750441453754,0.8314,2405.4,2405.0,3.2078]
[1750441453950,3.2078,2406.0,2405.0,3.2078]
[1750441454258,0.06933781,2406.1,2405.7,3.2078]
[1750441454559,2.31281194,2407.2,2406.0,3.2078]
[1750441454747,1.28733787,2407.1,2406.7,3.2078]
[1750441454946,3.0415,2407.3,2406.7,3.2078]
[1750441455152,0.83074,2407.3,2406.7,3.2078]
[1750441455351,3.87226,2407.2,2406.7,3.2078]
[1750441455548,0.83066,2407.5,2407.0,3.2078]
[1750441455751,0.83056,2407.8,2407.0,3.2078]
[1750441455960,1.28822518,2407.7,2407.4,3.2078]
[1750441456257,9.3428,2408.2,2407.1,3.2078]
[1750441456557,3.2078,2408.0,2407.2,3.2078]
[1750441456856,3.2078,2408.3,2407.8,3.2078]
[1750441457051,0.83056,2407.8,2407.2,3.2078]
[1750441457251,4.03819,2408.3,2407.5,3.2078]
[1750441457460,1.2882432,2408.2,2407.6,2.9334]
[1750441457660,0.8305,2408.0,2407.5,3.2078]
[1750441457957,0.83032,2408.5,2407.9,3.2078]
[1750441458160,0.83032,2408.5,2407.4,11.38077783]
[1750441458161,0.83056,2407.8,2407.4,3.2078]
[1750441458357,4.03815,2408.4,2407.7,3.2078]
[1750441458559,3.2078,2408.3,2407.7,3.2078]
[1750441458758,3.2078,2408.0,2407.4,2.9334]
[1750441459258,3.2078,2407.6,2407.0,3.2078]
[1750441459569,0.83072,2407.3,2407.0,3.2078]
[1750441459753,3.2078,2408.1,2407.0,14.58857783]
[1750441459955,2.912,2409.1,2407.0,14.58857783]
[1750441459956,2.912,2409.1,2407.8,14.58857783]
[1750441460160,2.9389,2409.0,2408.1,3.2078]
[1750441460356,0.83031,2408.5,2408.1,3.2078]
[1750441460662,4.03804,2408.7,2408.1,3.2078]
[1750441460863,4.03816,2408.4,2407.9,2.9334]
[1750441461064,4.03816,2408.4,2407.8,3.2078]
[1750441461065,14.58857783,2408.7,2407.8,3.2078]
[1750441461261,0.83047,2408.0,2407.5,3.1924]
[1750441461458,3.2078,2407.9,2407.5,3.1924]
[1750441461764,3.2078,2407.9,2407.3,3.2078]
[1750441461951,3.2078,2407.9,2407.4,3.1924]
[1750441462158,0.06933781,2407.8,2407.6,3.2078]
[1750441462455,0.06933781,2407.8,2407.3,3.2078]
[1750441462858,0.06933781,2407.8,2407.7,3.2078]
[1750441463058,0.06933781,2407.8,2407.4,6.4002]
[1750441463263,0.06933781,2407.8,2407.7,3.2078]
[1750441463870,3.1583,2408.7,2407.7,8.2078]
[1750441464062,3.1583,2408.7,2408.0,3.2078]
[1750441464371,49.861,2408.8,2408.3,3.2078]
[1750441464664,3.1583,2409.3,2408.6,3.2078]
[1750441464855,3.2078,2409.2,2408.6,3.2078]
[1750441465264,3.1583,2409.1,2408.6,3.2078]
[1750441465571,3.1583,2409.1,2408.0,3.0774]
[1750441465572,3.1583,2409.1,2408.8,3.2078]
[1750441465862,3.9884,2409.1,2408.4,3.2078]
[1750441466068,3.1583,2409.1,2408.7,3.2078]
[1750441466266,0.83014,2409.0,2408.3,3.2078]
[1750441466567,3.1583,2409.1,2408.3,3.2078]
[1750441467068,3.2078,2408.7,2408.0,3.2078]
[1750441467365,3.0393,2408.6,2408.0,3.2078]
[1750441467565,0.83035,2408.4,2408.0,3.2078]
[1750441467861,3.0393,2408.6,2408.0,3.2078]
[1750441468160,4.03815,2408.4,2408.0,3.2078]
[1750441468363,3.0393,2408.6,2408.0,3.2078]
[1750441468566,0.83042,2408.2,2408.0,3.2078]
[1750441469062,0.83042,2408.2,2407.7,3.2078]
[1750441469364,0.06933781,2407.8,2407.6,3.032]
[1750441469665,0.06933781,2407.8,2407.7,3.2078]
[1750441470662,0.83085,2407.0,2406.4,3.2078]
[1750441470967,8.26898,2407.7,2406.8,3.2078]
[1750441471165,0.06933781,2407.8,2407.3,3.2078]
[1750441471866,0.83068,2407.4,2407.3,3.2078]
[1750441472065,0.83066,2407.5,2407.3,3.2078]
[1750441472258,0.83066,2407.5,2406.4,11.38077783]
[1750441472259,0.83072,2407.3,2406.9,3.2078]
[1750441472456,2.9847,2407.4,2406.9,3.2078]
[1750441472767,0.83082,2407.0,2406.5,2.9736]
[1750441472965,4.03861,2407.1,2406.5,2.9736]
[1750441473167,3.2078,2407.1,2406.0,3.2078]
[1750441473462,2.9257,2407.0,2406.3,3.2078]
[1750441473662,2.9257,2407.0,2406.0,3.1119]
[1750441473663,4.03873,2406.7,2406.0,6.3197]
[1750441473963,4.03874,2406.7,2406.0,6.3197]
[1750441474268,2.9257,2406.6,2406.0,6.3197]
[1750441474665,3.2078,2407.0,2406.0,6.3197]
[1750441474872,6.96433,2407.0,2406.3,3.2078]
[1750441475070,6.1335,2407.0,2406.3,3.2078]
[1750441475364,6.1335,2407.0,2406.4,3.1119]
[1750441476163,59.01077783,2407.4,2406.4,3.1119]
[1750441476164,0.06933781,2407.5,2406.8,11.38077783]
[1750441476372,0.06933781,2407.5,2407.3,3.2078]
[1750441476866,11.38077783,2407.4,2406.6,3.2078]
[1750441477067,10.35382781,2407.5,2406.0,6.2582]
[1750441477068,11.38077783,2407.1,2406.0,6.2582]
[1750441477368,3.2078,2407.2,2406.0,3.2078]
[1750441477369,3.2078,2406.5,2406.0,3.2078]
[1750441478369,2.9008,2406.9,2406.1,3.0504]
[1750441478671,0.83095,2406.7,2406.1,3.0504]
[1750441478970,3.2078,2406.7,2406.0,3.2078]
[1750441479170,3.2078,2407.0,2406.3,3.2078]
[1750441479372,53.13513781,2407.5,2406.6,3.2078]
[1750441479567,0.06933781,2407.5,2406.6,3.2078]
[1750441479765,3.2078,2407.1,2406.3,3.2078]
[1750441480071,0.83088,2406.9,2406.3,3.2078]
[1750441480275,0.83082,2407.0,2406.3,3.2078]
[1750441480464,7.04851,2407.4,2406.6,3.2078]
[1750441480668,0.83074,2407.3,2406.7,3.0999]
[1750441480868,5.08685,2407.3,2406.6,3.2078]
[1750441481167,3.01,2407.3,2406.3,6.3077]
[1750441481370,3.01,2407.3,2406.6,3.2078]
[1750441481568,0.06933781,2407.5,2406.9,3.2078]
[1750441481869,0.06933781,2407.5,2407.2,3.2078]
[1750441482262,0.06933781,2407.5,2407.3,3.0756]
[1750441483360,14.58857783,2408.6,2407.3,8.0756]
[1750441483565,14.58857783,2408.3,2407.3,3.0756]
[1750441483761,3.2078,2408.0,2407.3,3.0756]
[1750441483966,3.2078,2408.1,2407.5,3.2078]
[1750441484260,3.70283691,2410.0,2407.6,3.2078]
[1750441484469,3.2078,2409.2,2408.4,3.2078]
[1750441484662,3.2078,2409.2,2408.5,3.0756]
[1750441484863,3.2078,2409.2,2408.1,3.2078]
[1750441485062,2.8942,2409.1,2408.1,3.2078]
[1750441485268,0.83021,2408.8,2408.2,3.1208]
[1750441485564,3.2078,2408.9,2408.2,3.1208]
[1750441485773,0.83011,2409.1,2408.2,3.1208]
[1750441485967,3.2078,2409.3,2408.4,3.2078]
[1750441486174,3.2078,2409.4,2408.4,3.2078]
[1750441486473,6.102,2409.4,2408.7,3.2078]
[1750441486674,0.83006,2409.3,2408.7,3.2078]
[1750441486862,0.83007,2409.2,2408.7,3.2078]
[1750441487059,2.8942,2409.3,2408.5,3.1208]
[1750441487260,3.72425,2409.3,2408.5,3.1208]
[1750441487469,2.8942,2409.3,2408.5,3.1208]
[1750441487870,3.2078,2409.1,2408.3,3.2078]
[1750441488065,0.83018,2408.9,2408.0,6.4062]
[1750441488267,0.83031,2408.5,2408.0,6.4062]
[1750441488462,4.03794,2409.0,2408.3,3.2078]
[1750441488666,0.83017,2408.9,2408.4,3.1984]
[1750441488973,5.28291,2409.3,2408.4,3.1984]
[1750441489271,0.83022,2408.8,2408.4,3.1984]
[1750441489465,3.2078,2409.0,2408.4,3.1984]
[1750441489670,3.94188,2408.9,2408.4,3.1984]
[1750441490071,3.2078,2409.4,2408.4,14.57917783]
[1750441490268,0.06933781,2409.5,2408.5,3.2078]
[1750441490465,0.06933781,2409.5,2408.4,3.1984]
[1750441490466,0.06933781,2409.5,2408.8,3.2078]
[1750441490668,0.89930781,2409.5,2408.9,3.1984]
[1750441490871,0.06933781,2409.5,2408.9,3.1984]
[1750441491771,0.06933781,2409.5,2409.4,3.2078]
[1750441493163,3.50033445,2410.6,2409.4,8.2078]
[1750441493362,2.07378,2410.8,2410.3,3.2078]
[1750441493566,3.2078,2410.7,2409.9,3.2078]
[1750441493762,2.954,2410.7,2410.2,3.2078]
[1750441494170,2.07333,2411.4,2410.0,3.1741]
[1750441494171,3.2078,2411.8,2410.6,14.58857783]
[1750441494469,0.28249446,2411.9,2410.6,14.58857783]
[1750441494470,6.94903,2411.7,2411.2,3.2078]
[1750441494668,0.82928,2411.5,2411.2,3.2078]
[1750441494868,6.1198,2411.4,2410.5,3.2078]
[1750441495063,3.2078,2411.7,2411.1,3.2078]
[1750441495263,2.0725,2412.3,2410.3,2.9026]
[1750441495264,3.2078,2412.3,2411.6,11.38077783]
[1750441495475,0.8292,2411.8,2411.4,3.2078]
[1750441495774,2.912,2412.2,2411.4,3.2078]
[1750441496072,3.2078,2412.1,2411.4,3.2078]
[1750441496376,3.2078,2412.4,2411.4,14.58857783]
[1750441496569,6.1198,2412.4,2411.7,3.2078]
[1750441496769,0.82901,2412.3,2411.7,3.2078]
[1750441496970,2.96,2412.3,2411.7,3.2078]
[1750441497170,2.96,2412.3,2411.5,2.9026]
[1750441497470,0.82904,2412.2,2411.6,3.2078]
[1750441497667,2.96,2412.3,2411.6,3.2078]
[1750441497867,3.78901,2412.3,2411.5,2.9026]
[1750441498073,0.29034472,2412.8,2411.9,14.58857783]
[1750441498369,0.82888,2412.7,2412.0,3.2015]
[1750441498576,3.78888,2412.7,2412.0,3.2015]
[1750441498777,2.96,2412.7,2412.0,3.2015]
[1750441498968,0.82889,2412.6,2412.0,3.2015]
[1750441499271,3.2078,2412.1,2411.3,3.2078]
[1750441499574,2.96,2412.0,2411.3,3.2078]
[1750441499767,3.2078,2411.9,2411.3,3.2078]
[1750441499969,0.82932,2411.4,2411.0,3.2078]
[1750441500172,0.82931,2411.4,2411.0,3.2078]
[1750441500374,3.2078,2411.6,2411.1,3.1768]
[1750441500672,2.07301,2411.7,2410.6,3.2078]
[1750441500873,2.07352,2411.1,2410.5,3.2078]
[1750441501174,14.58857783,2411.2,2410.0,3.2078]
[1750441501175,3.2078,2410.8,2410.0,3.2078]
[1750441501471,0.82963,2410.5,2410.1,6.1767]
[1750441501774,0.82972,2410.2,2410.1,0.0829841]
[1750441501968,0.82972,2410.2,2409.0,3.1095]
[1750441501969,5.0,2410.2,2409.2,3.2078]
[1750441502167,3.2201,2411.1,2409.1,3.1768]
[1750441502168,2.07341,2411.3,2409.1,3.1768]
[1750441502372,3.2078,2410.8,2410.2,11.38077783]
[1750441502572,2.07379,2410.8,2409.8,3.2078]
[1750441502868,2.07379,2410.8,2407.3,3.2078]
[1750441502869,11.38077783,2407.9,2407.3,3.2078]
[1750441503068,3.2078,2407.5,2406.9,3.2078]
[1750441503265,3.2078,2407.5,2407.0,3.1061]
[1750441503467,3.2078,2408.6,2407.4,14.58857783]
[1750441503671,3.2078,2409.2,2408.0,14.58857783]
[1750441503875,3.2078,2408.9,2408.3,3.2078]
[1750441504177,3.2078,2408.9,2408.4,3.18914268]